Cogmind - Beta 12 @@@ ROGUE MODE // 2023.12.11 @ 01:28:00 Player: kicktown Result: Destroyed by exploding Neutrino Reactor Performance ------------- Evolutions (0) 0 Regions Visited (1) 200 Robots Destroyed (18) 90 Value Destroyed (358) 358 Prototype IDs (0) 0 Alien Tech Used (0) 0 Bonus (0) 0 TOTAL SCORE: 648 Bonus ------- None Cogmind --------- Core Integrity 0/250 Matter 300/300 Energy 248/250 System Corruption 1% Temperature Cool (0) Movement Rolling (260) Ox12 Location -10/Materials Parts ------- > --- POWER (1) -------- Ion Engine > --- PROPULSION (2) --- Wheel > --- UTILITY (2) ------ High-capacity Storage Unit Huge Storage Unit > --- WEAPON (2) ------- Light Assault Rifle > --- INVENTORY (25) --- Ion Engine Ion Engine Light Ion Engine Light Ion Engine Light Ion Engine Light Treads Light Treads Light Treads Light Treads Light Treads Heat Sink Small Storage Unit High-capacity Storage Unit Small Battery (100) Medium Matter Pod (100) Medium Matter Pod (100) Visual Processing Unit Weapon Shielding Light Assault Rifle Peak State ------------ > --- POWER ------------ Ion Engine > --- PROPULSION ------- Wheel Wheel > --- UTILITY ---------- High-capacity Storage Unit Huge Storage Unit > --- WEAPON ----------- Light Assault Rifle Light Assault Rifle > --- INVENTORY -------- Ion Engine Ion Engine Light Ion Engine Light Ion Engine Light Ion Engine Light Treads Light Treads Light Treads Light Treads Light Treads Heat Sink Small Storage Unit High-capacity Storage Unit Small Battery Medium Matter Pod Medium Matter Pod Visual Processing Unit Weapon Shielding Light Assault Rifle [Rating: 9] Favorites ----------- Power Ion Engine Engine Ion Engine Propulsion Wheel Treads Light Treads Wheel Wheel Utility Huge Storage Unit Storage Huge Storage Unit Weapon Light Assault Rifle Ballistic Gun Light Assault Rifle Build | -11 -10 ------- Run | Jun Mat Slots Evolved . | . . Power . | . . Propulsion . | . . Utility . | . . Weapon . | . . Parts Attached 30 | 5 25 Power 3 | 1 2 Engine 3 | 1 2 Core . | . . Reactor . | . . Propulsion 19 | 1 18 Treads 9 | . 9 Leg . | . . Wheel 10 | 1 9 Hover . | . . Flight . | . . Utility 4 | 1 3 Device . | . . Storage 4 | 1 3 Processor . | . . Hackware . | . . Protection . | . . Artifact . | . . Weapon 4 | 2 2 Energy Gun . | . . Energy Cannon . | . . Ballistic Gun 4 | 2 2 Ballistic Cannon . | . . Launcher . | . . Special Weapon . | . . Impact Weapon . | . . Slashing Weapon . | . . Piercing Weapon . | . . Special Melee Weapon . | . . Unidentified Prototypes . | . . Parts Lost 7 | . 7 Power 2 | . 2 Propulsion 2 | . 2 Utility . | . . Weapon 3 | . 3 Highest Loss Streak 3 | . 3 To Critical Strikes . | . . Average Slot Usage (%) 96 | . 96 Engine 13 | . 13 Treads 5 | . 5 Wheel 20 | . 20 Storage 27 | . 27 Ballistic Gun 27 | . 27 Naked Turns . | . . Heaviest Build 127 | 10 127 Greatest Support 20 | 10 20 Greatest Overweight (x) 12 | . 12 Average Overweight (x) 3 | . 4 Largest Inventory Capacity 25 | 8 25 Average Capacity 22 | 7 24 Most Carried 19 | 4 19 Average Carried 8 | 2 9 Final Capacity 25 | 8 25 Final Carried 19 | 4 19 Class Distribution -------------------- 100% | Mutant Dominant Class ---------------- Mutant | -10/Materials Resources | -11 -10 ----------- Run | Jun Mat Matter Collected 798 | 198 600 Remotely . | . . Salvage Created 621 | . 621 Parts 43 | . 43 Haulers Intercepted 2 | . 2 Recyclers Shooed 1 | . 1 Parts Field Recycled . | . . Retrieved Matter . | . . Parts Self-Destructed . | . . Prevented . | . . Kills | -11 -10 ------- Run | Jun Mat Combat Hostiles Destroyed 14 | . 14 Guns 14 | . 14 Classes Destroyed 5 | . 5 Hauler 2 | . 2 Recycler 1 | . 1 Watcher 1 | . 1 Swarmer 6 | . 6 Grunt 8 | . 8 Best Kill Streak 8 | . 8 Combat Bots Only 8 | . 8 Max Kills in Single Turn 1 | . 1 Gunslinging . | . . Exploded . | . . Melee . | . . Uniques/NPCs Destroyed . | . . Combat | -11 -10 -------- Run | Jun Mat Damage Taken 902 | . 902 Core 250 | . 250 Absorbed by Shields . | . . Core Remaining (%) 100 | 100 . Volleys Fired 64 | . 64 Largest 2 | . 2 Hottest 40 | . 40 Shots Fired 123 | . 123 Gun 123 | . 123 Cannon . | . . Launcher . | . . Special . | . . Kinetic 123 | . 123 Thermal . | . . Explosive . | . . Electromagnetic . | . . Robot Hit Streak 12 | . 12 Robot Miss Streak 3 | . 3 Penetration Max . | . . Secondary Targets 2 | . 2 Max Gunslinging Chain 1 | . 1 Shots Hit Robots 87 | . 87 Core Hits 33 | . 33 Critical Kills . | . . Critical Parts Destroyed . | . . Critical Strikes . | . . Melee Attacks . | . . Impact . | . . Slashing . | . . Piercing . | . . Sneak Attacks . | . . Combat Hostiles . | . . Follow-up Attacks . | . . Damage Inflicted 686 | . 686 Guns 686 | . 686 Cannons . | . . Explosions . | . . Melee . | . . Ramming . | . . Kinetic 686 | . 686 Thermal . | . . Explosive . | . . Electromagnetic . | . . Impact . | . . Slashing . | . . Piercing . | . . Highest Corruption . | . . Average Corruption . | . . Corruption Purged . | . . Corruption Blocked . | . . Overload Shots . | . . Overflow Damage . | . . Projectiles . | . . Explosions . | . . Melee . | . . Knockbacks . | . . Impact . | . . Kinetic . | . . Secondary . | . . Self-Inflicted Damage . | . . Shots . | . . Rammed . | . . Targets Rammed . | . . Kicked . | . . Crushed . | . . Highest Temperature 34 | . 34 Average Temperature 13 | . 13 Received Heat Transfer 348 | . 348 Siege Activations . | . . Robots Corrupted . | . . Combat Hostiles . | . . Parts Fried . | . . Impact Corruptions . | . . Robots Melted . | . . Combat Hostiles . | . . Parts Melted . | . . Heat Transferred . | . . Parts Sabotaged . | . . Parts Stolen . | . . Parts Stripped . | . . Power Chain Reactions . | . . Missiles Intercepted . | . . Alert | -11 -10 ------- Run | Jun Mat Peak Influence 265 | . 265 Initial . | . . Average 98 | . 107 Maximum Alert Level 1 | . 1 Low Security (%) 82 | 100 80 Level 1 17 | . 19 Level 2 . | . . Level 3 . | . . Level 4 . | . . Level 5 . | . . High Security . | . . Max Security . | . . Squads Dispatched 2 | . 2 Investigation 1 | . 1 Extermination . | . . Reinforcement 1 | . 1 Assault . | . . Garrison . | . . Intercept . | . . Searches Triggered . | . . Construction Impeded . | . . Haulers Reinforced . | . . Active Scanning Responses . | . . Cargo Convoy Interrupts . | . . Stealth | -11 -10 --------- Run | Jun Mat Distress Signals 2 | . 2 Communications Jammed . | . . Distress Signals . | . . Times Spotted 26 | . 26 Peak Tracking Total 6 | . 6 Tactical Retreats . | . . Traps | -11 -10 ------- Run | Jun Mat Traps Triggered 2 | . 2 Indirectly . | . . Trap Hack Attempts . | . . Triggered . | . . Disarmed . | . . Reprogrammed . | . . Reused . | . . Traps Extracted . | . . Installed . | . . Triggered . | . . Machines | -11 -10 ---------- Run | Jun Mat Machines Disabled . | . . Max in Single Turn . | . . Machines Repaired . | . . Machines Sabotaged . | . . Overloaded Fab Kills . | . . Hacking | -11 -10 --------- Run | Jun Mat Machines Accessed . | . . Terminals . | . . Fabricators . | . . Repair Stations . | . . Recycling Units . | . . Scanalyzers . | . . Garrison Access . | . . Total Hacks . | . . Successful . | . . Failed . | . . Catastrophic . | . . Database Lockouts . | . . Manual . | . . Terminals . | . . Fabricators . | . . Repair Stations . | . . Recycling Units . | . . Scanalyzers . | . . Garrison Access . | . . Terminal Hacks . | . . Fabricator Hacks . | . . Repair Station Hacks . | . . Recycling Unit Hacks . | . . Scanalyzer . | . . Garrison Access Hacks . | . . Unauthorized Hacks . | . . Terminals . | . . Fabricators . | . . Repair Stations . | . . Recycling Units . | . . Scanalyzers . | . . Garrison Access . | . . Data Cores Recovered . | . . Used . | . . Hacking Detections . | . . Full Trace Events . | . . Feedback Events . | . . Feedback Blocked . | . . Robot Schematics Acquired . | . . Robots Built . | . . Authchips . | . . Time . | . . Total Robot Build Rating . | . . Part Schematics Acquired . | . . Parts Built . | . . Authchips . | . . Time . | . . Total Part Build Rating . | . . Parts Repaired . | . . Time . | . . Parts Recycled . | . . Recycled Matter . | . . Retrieved Matter . | . . Retrieved Components . | . . Parts Scanalyzed . | . . Part Schematics Acquired . | . . Parts Damaged . | . . Bothacking | -11 -10 ------------ Run | Jun Mat Used RIF Installer . | . . Robots Hacked . | . . Non-combat . | . . Combat . | . . Robot Hacks Applied . | . . Relay Couplers Released . | . . Fabnet Peak Effective % . | . . Robots Rewired . | . . Allies Hacked . | . . Hacks Repelled . | . . Allies | -11 -10 -------- Run | Jun Mat Total Allies . | . . Largest Group . | . . Highest-Rated Group . | . . Highest-Rated Ally . | . . Total Orders . | . . Ally Attacks . | . . Total Damage . | . . Kills . | . . Allies Corrupted . | . . Allies Melted . | . . Intel | -11 -10 ------- Run | Jun Mat Robot Analysis Total . | . . Derelict Logs Recovered . | . . Drone Launches . | . . Drone Recoveries . | . . Exploration | -11 -10 ------------- Run | Jun Mat Turns Passed 571 | 47 524 Spaces Moved 236 | 44 192 Core 1 | 1 . Treads . | . . Legs . | . . Wheels 235 | 43 192 Hover . | . . Flight . | . . Fastest Speed 50 | 50 80 Average Speed 138 | 79 152 Slowest Speed 260 | 80 260 Overloaded Moves . | . . Propulsion Burnouts . | . . Robots Hopped . | . . Cave-ins Triggered . | . . Exploration Rate (%) 19 | 4 34 Regions Visited 1 Branch Regions . Pre-discovered Areas . | . . Known Exits Taken . | . . Unknown Exits Taken 1 | 1 . Scrap Searched . | . . Spaces Dug . | . . Terrain Destroyed . | . . Melee . | . . Projectile . | . . AOE . | . . Terrain Rammed . | . . Walls Destroyed . | . . Machines Disabled . | . . Actions | -11 -10 --------- Run | Jun Mat Total 370 | 53 317 Wait 18 | 1 17 Move 235 | 43 192 Hop . | . . Pick Up 22 | 4 18 Fast Attach 8 | 5 3 Attach 5 | . 5 Detach 1 | . 1 Swap 17 | . 17 Drop . | . . Fire 64 | . 64 Melee . | . . Ram . | . . Kick . | . . Crush . | . . Escape Stasis . | . . Rewire . | . . Trap . | . . Miscellaneous . | . . Route ------- -11/Junkyard -10/Materials (discovered 1 exit: [*Min]) History --------- Turn | Location | Event 15 | -11/Junkyard | Discovered new exit (range 16) 48 | -11/Junkyard | Entered Materials 162 | -10/Materials | Discovered new exit (range 16) 319 | -10/Materials | Build established: Mutant 329 | -10/Materials | Core integrity fell below 50% 374 | -10/Materials | Core integrity fell below 20% 396 | -10/Materials | Destroyed 8 combat bots 398 | -10/Materials | Lost 3 parts (1p2w) 572 | -10/Materials | Destroyed by exploding Neutrino Reactor Last Messages --------------- 00536_ K-01 Serf collects debris. 00538_ Acquired 96 matter. 00540_ Acquired 47 matter. 00540_ K-01 Serf collects debris. 00545_ Acquired Ion Engine. 00549_ K-01 Serf collects debris. 00559_ Acquired Lgt. Treads. 00561_ K-01 Serf collects debris. 00563_ Acquired 2 matter. 00566_ K-01 Serf cleans the Neutrino Reactor. 00566_ Acquired Lgt. Treads. 00569_ K-01 Serf cleans the Neutrino Reactor. 00569_ Acquired Lgt. Treads. 00572_ K-01 Serf cleans the Neutrino Reactor. 00572_ Triggered EMP Trap. 00572_ A bubble of electromagnetic force engulfs the area. 00572_ Lgt. Assault Rifle destroyed. 00572_ R-06 Scavenger destroyed. 00572_ Neutrino Reactor explodes. 00572_ Wheel destroyed. Map ----- +----------------------------------------------------+ | ????????????????????????????????????????????????? | | ????????????????????????????????????????????????? | | ????????????????????????????????????????????????? | | ????????????????????????????????????????????????? | | ????????????????????????????????????????????????? | | ????????????????????????????????????????????????? | | ????????????????????????????????????????????????? | | ???????????????????????????????????????????????? | | #??????????????????????????????????????????????? | | #??+???????????????????????????????????????????? | | #?? ???????????????????????????????????????????? | | #?# #??????????????????????????????????????????? | | #?# #??????????????????????????????????????????? | | #?# #??????????????????????????????????????????? | | #?# #??????????????????????????????????????????? | | #?# #?????????########?##???##?????????????????? | | #?# #?????????# ## ? ##????????????????? | | ### ##????????# ## ""?" +?????????????????? | | #????????# """## "??" #?????????????????? | | #????????# """## "?"" #?????????????????? | | !! + ???????# """## #?????????????????? | | ! ########## ## ? ]??????????????????? | | ## ##+######+##+###?????????????????? | | m !% #?????????????????? | | < = !^ ^ % + ??????????????? | | = k@! #?????????????????? | | +#######" "## """ #?????????????????? | | ???????#" " "## """!% #?????????????????? | | ???????#"""""""## """ = ##????????????????? | | ???????########## % ??????????? | | ????????????????#% ###???????????????? | | ????????????????# ##w########?????????????????? | | ????????????????# # o ???????????????????????? | | ????????????????# # "?????????????????????? | | ????????????????# # ? ????????????????????? | | ????????????????# # ?? ??????????????????? | | ???????????????? ##????##????????????????????? | | ??????????????? ???????????????????????????? | | ??????????????? ???????????????????????????? | | ?????????????? """ ""??????????????????????????? | | ?????????????? """""""??????????????????????????? | | ????????????? """???????????????????????????? | | ????????????? ????? ????????????????????????????? | | ????????????? ??????????????????????????????????? | | ????????????????????????????????????????????????? | | ????????????????????????????????????????????????? | | ????????????????????????????????????????????????? | | ????????????????????????????????????????????????? | | ????????????????????????????????????????????????? | | ????????????????????????????????????????????????? | +----------------------------------------------------+ Best States ------------- Heat Dissipation 25 Energy Generation 10 Energy Capacity 250 Matter Stores 300 Matter Capacity 300 Sight Range 16 Terrain Scan Density 10 Evasion (%) 44 Recoil Reduction 2 Item Schematics ----------------- None Robot Schematics ------------------ None Fabricated ------------ Nothing Alien Tech Used ----------------- None Achievements -------------- None Challenges ------------ None Game ------ Seed HeatPlasmaBlade Manual? 0 Play Time 00:10:18 Cumulative 60.9 hours Start 2023.12.11 @ 01:19:53 End 2023.12.11 @ 01:28:00 Sessions 1 Manual Loads 0 Difficulty Rogue Special Mode None Game No. 55 Rogue 55 Adventurer 0 Explorer 0 Win Type - Total 0 Types 0/0/0/0/0/0/0/0/0 Lore% 28 Gallery% 47 Achievement% 33 Wizard Run 0 Options --------- ASCII 0 Keyboard 0 Movement Mouse Keybinds 0 Fullscreen 2 Font 18/TerminusBold Map View 76x50 Tactical HUD 1 Map Filters NONE Filters NONE Steam 1 RUN: 25397a04-3f99-460b-a82e-f6fb37db61e0